[Event "*** Titled Tuesday Blitz"]
[Site "Chess.com"]
[Date "2020.05.12"]
[Round "4"]
[White "MYMChessAcademy"]
[Black "LastHeroJr"]
[Result "0-1"]
[WhiteElo "2264"]
[BlackElo "2505"]
[TimeControl "180+1"]
[EndTime "10:38:47 PDT"]
[Termination "LastHeroJr won on time"]

1. d4 {[%clk 0:03:00.9]} 1... Nf6 {[%clk 0:02:59.8]} 2. c4 {[%clk 0:03:01.8]}
2... g6 {[%clk 0:03:00.2]} 3. Nf3 {[%clk 0:03:02.3]} 3... Bg7 {[%clk 0:03:00.6]}
4. g3 {[%clk 0:03:03.2]} 4... O-O {[%clk 0:03:00.8]} 5. Bg2 {[%clk 0:03:03.8]}
5... d6 {[%clk 0:03:01.4]} 6. O-O {[%clk 0:03:04.2]} 6... Nbd7 {[%clk
0:03:01.9]} 7. Nc3 {[%clk 0:03:04.4]} 7... e5 {[%clk 0:03:02.1]} 8. b3 {[%clk
0:03:00.5]} 8... exd4 {[%clk 0:02:58.3]} 9. Nxd4 {[%clk 0:03:00.2]} 9... Re8
{[%clk 0:02:57.7]} 10. e3 {[%clk 0:02:58.8]} 10... Nc5 {[%clk 0:02:56]} 11. b4
{[%clk 0:02:47.5]} 11... Nce4 {[%clk 0:02:44.7]} 12. Bb2 {[%clk 0:02:34]} 12...
Nxc3 {[%clk 0:02:35.2]} 13. Bxc3 {[%clk 0:02:34.9]} 13... Ne4 {[%clk 0:02:35.7]}
14. Bxe4 {[%clk 0:01:49.7]} 14... Rxe4 {[%clk 0:02:36.6]} 15. Qd3 {[%clk
0:01:49.8]} 15... Re8 {[%clk 0:02:31.7]} 16. Rad1 {[%clk 0:01:32.7]} 16... Bh3
{[%clk 0:02:23.2]} 17. Rfe1 {[%clk 0:01:31.1]} 17... Qf6 {[%clk 0:02:14.9]} 18.
e4 {[%clk 0:01:19.1]} 18... Qe7 {[%clk 0:01:48.2]} 19. f3 {[%clk 0:01:15.1]}
19... a6 {[%clk 0:01:26.6]} 20. Ne2 {[%clk 0:01:13.9]} 20... Bxc3 {[%clk
0:01:23.6]} 21. Nxc3 {[%clk 0:01:14.8]} 21... Be6 {[%clk 0:01:20.2]} 22. Nd5
{[%clk 0:00:58.1]} 22... Bxd5 {[%clk 0:01:20.4]} 23. cxd5 {[%clk 0:00:58.3]}
23... Qd7 {[%clk 0:01:16.2]} 24. Rc1 {[%clk 0:00:53.7]} 24... Rac8 {[%clk
0:01:16.2]} 25. Re2 {[%clk 0:00:43.5]} 25... Re5 {[%clk 0:01:09.8]} 26. f4
{[%clk 0:00:36.9]} 26... Re7 {[%clk 0:01:08.7]} 27. e5 {[%clk 0:00:35.4]} 27...
dxe5 {[%clk 0:01:02.5]} 28. fxe5 {[%clk 0:00:33.7]} 28... Rd8 {[%clk 0:01:02.6]}
29. Rd1 {[%clk 0:00:19.5]} 29... Qa4 {[%clk 0:00:57.1]} 30. Rdd2 {[%clk
0:00:13.4]} 30... Qxb4 {[%clk 0:00:54]} 31. Qf3 {[%clk 0:00:05.1]} 31... Rde8
{[%clk 0:00:35.1]} 32. Qf6 {[%clk 0:00:04.4]} 32... Qc3 {[%clk 0:00:21.1]} 33.
d6 {[%clk 0:00:02.1]} 33... cxd6 {[%clk 0:00:20.8]} 34. Rxd6 {[%clk 0:00:01.4]}
34... Rxe5 {[%clk 0:00:18.5]} 35. Rf2 {[%clk 0:00:01.6]} 35... Re1+ {[%clk
0:00:17.5]} 36. Kg2 {[%clk 0:00:02.1]} 36... Qxf6 {[%clk 0:00:17.6]} 37. Rfxf6
{[%clk 0:00:01.7]} 37... R1e2+ {[%clk 0:00:17]} 0-1

[Event "*** Titled Tuesday Blitz"]
[Site "Chess.com"]
[Date "2020.05.12"]
[Round "4"]
[White "Konek-Gorbunok"]
[Black "aa175"]
[Result "0-1"]
[WhiteElo "2157"]
[BlackElo "2401"]
[TimeControl "180+1"]
[EndTime "10:38:47 PDT"]
[Termination "aa175 won by resignation"]

1. d4 {[%clk 0:03:00.9]} 1... e5 {[%clk 0:02:55.2]} 2. Nf3 {[%clk 0:03:01.8]}
2... e4 {[%clk 0:02:54.3]} 3. Nfd2 {[%clk 0:03:01.7]} 3... e3 {[%clk 0:02:50.8]}
4. fxe3 {[%clk 0:03:00.5]} 4... d5 {[%clk 0:02:49.9]} 5. e4 {[%clk 0:02:46.1]}
5... Nf6 {[%clk 0:02:44.9]} 6. exd5 {[%clk 0:02:28.3]} 6... Ng4 {[%clk
0:02:28.1]} 7. Nf3 {[%clk 0:02:23.1]} 7... Qxd5 {[%clk 0:02:24.5]} 8. Nc3 {[%clk
0:02:13.3]} 8... Bb4 {[%clk 0:02:24.3]} 9. Qd3 {[%clk 0:02:12.8]} 9... Bf5
{[%clk 0:02:21.8]} 10. Qd2 {[%clk 0:01:39]} 10... Bxc3 {[%clk 0:02:05.5]} 11.
Qxc3 {[%clk 0:01:36.2]} 11... Nc6 {[%clk 0:02:05.7]} 12. e3 {[%clk 0:01:21.3]}
12... O-O-O {[%clk 0:01:47.4]} 13. Bd2 {[%clk 0:01:10.5]} 13... Rhe8 {[%clk
0:01:43.4]} 14. h3 {[%clk 0:01:06.5]} 14... Nf6 {[%clk 0:01:11.8]} 15. Bd3
{[%clk 0:00:46.1]} 15... Ne4 {[%clk 0:00:53.6]} 16. Bxe4 {[%clk 0:00:43.2]}
16... Bxe4 {[%clk 0:00:54.5]} 17. O-O-O {[%clk 0:00:41.2]} 17... Rd6 {[%clk
0:00:46.1]} 18. Qb3 {[%clk 0:00:28.2]} 18... Ne7 {[%clk 0:00:34.6]} 19. Qxd5
{[%clk 0:00:20.5]} 19... Nxd5 {[%clk 0:00:29.3]} 20. Rde1 {[%clk 0:00:20.5]}
20... Rc6 {[%clk 0:00:26.4]} 21. c3 {[%clk 0:00:19.9]} 21... Nb4 {[%clk
0:00:25.6]} 22. Ref1 {[%clk 0:00:14.9]} 22... Nxa2+ {[%clk 0:00:20.7]} 23. Kd1
{[%clk 0:00:15.2]} 23... f6 {[%clk 0:00:21.6]} 24. Ne1 {[%clk 0:00:14.1]} 24...
Ra6 {[%clk 0:00:19.4]} 25. Nc2 {[%clk 0:00:12.9]} 25... Bxg2 {[%clk 0:00:18.5]}
26. Rhg1 {[%clk 0:00:12.4]} 26... Bxh3 {[%clk 0:00:15.3]} 27. Rf3 {[%clk
0:00:09.6]} 27... Be6 {[%clk 0:00:13.4]} 28. Rxg7 {[%clk 0:00:09.3]} 28... Bd5
{[%clk 0:00:13.6]} 29. Rf4 {[%clk 0:00:07.8]} 29... Bb3 {[%clk 0:00:09.6]} 30.
Rxh7 {[%clk 0:00:06.4]} 30... Rc6 {[%clk 0:00:09.5]} 31. Rg4 {[%clk 0:00:04.8]}
31... Nb4 {[%clk 0:00:08.6]} 32. cxb4 {[%clk 0:00:03.7]} 32... Bxc2+ {[%clk
0:00:08.9]} 33. Ke1 {[%clk 0:00:04]} 33... Bxh7 {[%clk 0:00:09.8]} 0-1

[Event "*** Titled Tuesday Blitz"]
[Site "Chess.com"]
[Date "2020.05.12"]
[Round "4"]
[White "Kopytkin"]
[Black "Benjoneliere44"]
[Result "1-0"]
[WhiteElo "2347"]
[BlackElo "2538"]
[TimeControl "180+1"]
[EndTime "10:38:48 PDT"]
[Termination "Kopytkin won by resignation"]

1. d4 {[%clk 0:03:00.9]} 1... d6 {[%clk 0:02:59.1]} 2. Nf3 {[%clk 0:03:00.2]}
2... Bg4 {[%clk 0:02:55.5]} 3. e4 {[%clk 0:03:00.3]} 3... c6 {[%clk 0:02:53.1]}
4. h3 {[%clk 0:02:54.5]} 4... Bh5 {[%clk 0:02:49.6]} 5. c4 {[%clk 0:02:44.9]}
5... Nd7 {[%clk 0:02:48.9]} 6. Nc3 {[%clk 0:02:44.9]} 6... e5 {[%clk 0:02:46.6]}
7. d5 {[%clk 0:02:31.8]} 7... Ngf6 {[%clk 0:02:43.5]} 8. Bd3 {[%clk 0:02:22.6]}
8... Be7 {[%clk 0:02:42.5]} 9. Be3 {[%clk 0:02:18.2]} 9... O-O {[%clk
0:02:26.8]} 10. g4 {[%clk 0:02:17.9]} 10... Bg6 {[%clk 0:02:25.8]} 11. Nd2
{[%clk 0:02:18]} 11... cxd5 {[%clk 0:02:24.5]} 12. cxd5 {[%clk 0:02:17.7]} 12...
a6 {[%clk 0:02:19]} 13. Qe2 {[%clk 0:01:40.9]} 13... b5 {[%clk 0:02:17.2]} 14.
O-O {[%clk 0:01:39.6]} 14... Nc5 {[%clk 0:02:13.5]} 15. f3 {[%clk 0:01:30.1]}
15... Nxd3 {[%clk 0:02:09.5]} 16. Qxd3 {[%clk 0:01:30]} 16... Nd7 {[%clk
0:02:10.4]} 17. a4 {[%clk 0:01:11.5]} 17... b4 {[%clk 0:02:08]} 18. Na2 {[%clk
0:01:03.3]} 18... a5 {[%clk 0:02:06.6]} 19. Nc1 {[%clk 0:00:56.2]} 19... h5
{[%clk 0:02:04.5]} 20. Ncb3 {[%clk 0:00:54.2]} 20... hxg4 {[%clk 0:02:03.4]} 21.
hxg4 {[%clk 0:00:55.1]} 21... Bg5 {[%clk 0:02:01.3]} 22. Kg2 {[%clk 0:00:55.5]}
22... Bxe3 {[%clk 0:01:55.3]} 23. Qxe3 {[%clk 0:00:55.6]} 23... Qb6 {[%clk
0:01:55.6]} 24. Qxb6 {[%clk 0:00:53.9]} 24... Nxb6 {[%clk 0:01:56.5]} 25. Rac1
{[%clk 0:00:54.2]} 25... Nxa4 {[%clk 0:01:54.5]} 26. Rc2 {[%clk 0:00:52.9]}
26... Nb6 {[%clk 0:01:50.8]} 27. Rc6 {[%clk 0:00:52.9]} 27... Nc8 {[%clk
0:01:44.4]} 28. Nc4 {[%clk 0:00:43.9]} 28... Rd8 {[%clk 0:01:42]} 29. Nbxa5
{[%clk 0:00:35.7]} 29... f6 {[%clk 0:01:38.7]} 30. Nb7 {[%clk 0:00:29.5]} 30...
Rd7 {[%clk 0:01:35]} 31. Nbxd6 {[%clk 0:00:26]} 31... Nxd6 {[%clk 0:01:34.8]}
32. Nxd6 {[%clk 0:00:21.6]} 32... Ra2 {[%clk 0:01:32.5]} 33. Rf2 {[%clk
0:00:21.9]} 33... Rd8 {[%clk 0:01:26.4]} 34. Nc4 {[%clk 0:00:21.7]} 34... Be8
{[%clk 0:01:25.7]} 35. Rb6 {[%clk 0:00:20.4]} 35... g6 {[%clk 0:00:46.6]} 36.
Rxb4 {[%clk 0:00:18]} 36... Bf7 {[%clk 0:00:43.4]} 37. Rb6 {[%clk 0:00:17.6]}
37... Kg7 {[%clk 0:00:43]} 38. Rd2 {[%clk 0:00:17.7]} 38... Raa8 {[%clk
0:00:36.7]} 39. g5 {[%clk 0:00:17.9]} 39... fxg5 {[%clk 0:00:36.1]} 40. Nxe5
{[%clk 0:00:18.1]} 40... Be8 {[%clk 0:00:34.6]} 41. Ng4 {[%clk 0:00:17.9]} 41...
Bd7 {[%clk 0:00:32.1]} 42. Kg3 {[%clk 0:00:17.2]} 42... Rf8 {[%clk 0:00:30.2]}
43. Rb7 {[%clk 0:00:16.1]} 43... Rad8 {[%clk 0:00:28.2]} 44. Ne5 {[%clk
0:00:16]} 44... Kf6 {[%clk 0:00:28.2]} 45. Nxd7+ {[%clk 0:00:15.6]} 1-0

[Event "*** Titled Tuesday Blitz"]
[Site "Chess.com"]
[Date "2020.05.12"]
[Round "4"]
[White "LuckSlayeer"]
[Black "Pintacara"]
[Result "1-0"]
[WhiteElo "2488"]
[BlackElo "2306"]
[TimeControl "180+1"]
[EndTime "10:38:49 PDT"]
[Termination "LuckSlayeer won on time"]

1. e4 {[%clk 0:03:00.9]} 1... c5 {[%clk 0:02:59.5]} 2. Nf3 {[%clk 0:03:00.8]}
2... e6 {[%clk 0:02:58.6]} 3. d4 {[%clk 0:03:01.2]} 3... cxd4 {[%clk 0:02:59.5]}
4. Nxd4 {[%clk 0:03:01.9]} 4... a6 {[%clk 0:03:00.2]} 5. Nc3 {[%clk 0:03:02.3]}
5... Qc7 {[%clk 0:03:00.3]} 6. Bd3 {[%clk 0:03:00.7]} 6... Nf6 {[%clk
0:03:00.2]} 7. O-O {[%clk 0:03:00.5]} 7... d6 {[%clk 0:03:00.6]} 8. a4 {[%clk
0:02:59.2]} 8... b6 {[%clk 0:02:59.2]} 9. Re1 {[%clk 0:02:58.7]} 9... Nbd7
{[%clk 0:02:58.8]} 10. f4 {[%clk 0:02:56.6]} 10... Bb7 {[%clk 0:02:58.3]} 11.
Qe2 {[%clk 0:02:54.4]} 11... Be7 {[%clk 0:02:54.2]} 12. Be3 {[%clk 0:02:49.2]}
12... h5 {[%clk 0:02:41.9]} 13. h3 {[%clk 0:02:47.3]} 13... g6 {[%clk
0:02:38.8]} 14. Bf2 {[%clk 0:02:35.8]} 14... Rg8 {[%clk 0:02:19.9]} 15. Bh4
{[%clk 0:02:10.8]} 15... e5 {[%clk 0:02:05.4]} 16. fxe5 {[%clk 0:01:59.1]} 16...
Nxe5 {[%clk 0:02:03.8]} 17. Kh1 {[%clk 0:01:46.7]} 17... g5 {[%clk 0:01:29.3]}
18. Bg3 {[%clk 0:01:34]} 18... g4 {[%clk 0:01:25]} 19. h4 {[%clk 0:01:33.2]}
19... Nfd7 {[%clk 0:01:23.7]} 20. Nf5 {[%clk 0:01:30.7]} 20... Bf8 {[%clk
0:01:21.6]} 21. Nd5 {[%clk 0:01:25.7]} 21... Bxd5 {[%clk 0:01:20.4]} 22. exd5
{[%clk 0:01:26.6]} 22... Qb7 {[%clk 0:01:08.7]} 23. b4 {[%clk 0:01:15.4]} 23...
Kd8 {[%clk 0:00:48.6]} 24. a5 {[%clk 0:01:00.3]} 24... b5 {[%clk 0:00:43.6]} 25.
c4 {[%clk 0:00:59.3]} 25... bxc4 {[%clk 0:00:32.3]} 26. Bxc4 {[%clk 0:01:00.2]}
26... Qxb4 {[%clk 0:00:20.1]} 27. Bxa6 {[%clk 0:00:51.9]} 27... Qb3 {[%clk
0:00:12]} 28. Reb1 {[%clk 0:00:42.4]} 28... Qc3 {[%clk 0:00:08]} 29. Be1 {[%clk
0:00:27.4]} 29... Qc5 {[%clk 0:00:05.2]} 30. Bb7 {[%clk 0:00:24.6]} 30... Ra7
{[%clk 0:00:04.8]} 31. a6 {[%clk 0:00:23.7]} 31... Qc4 {[%clk 0:00:03.2]} 32.
Ba5+ {[%clk 0:00:16.8]} 32... Ke8 {[%clk 0:00:02.4]} 33. Rc1 {[%clk 0:00:10.5]}
1-0

[Event "*** Titled Tuesday Blitz"]
[Site "Chess.com"]
[Date "2020.05.12"]
[Round "4"]
[White "ChessTraining77"]
[Black "kirillshevchenko"]
[Result "1/2-1/2"]
[WhiteElo "2534"]
[BlackElo "2816"]
[TimeControl "180+1"]
[EndTime "10:38:50 PDT"]
[Termination "Game drawn by agreement"]

1. e4 {[%clk 0:03:00.9]} 1... c5 {[%clk 0:02:59.5]} 2. Nf3 {[%clk 0:02:59.8]}
2... d6 {[%clk 0:02:59.7]} 3. Bb5+ {[%clk 0:02:59.4]} 3... Nd7 {[%clk
0:02:59.3]} 4. c3 {[%clk 0:02:59.5]} 4... Nf6 {[%clk 0:02:58.4]} 5. Bd3 {[%clk
0:02:58.9]} 5... g6 {[%clk 0:02:53.2]} 6. Bc2 {[%clk 0:02:58.4]} 6... Bg7 {[%clk
0:02:52.3]} 7. d4 {[%clk 0:02:58.4]} 7... O-O {[%clk 0:02:52.3]} 8. O-O {[%clk
0:02:58.3]} 8... e5 {[%clk 0:02:49]} 9. d5 {[%clk 0:02:39.6]} 9... b5 {[%clk
0:02:42.7]} 10. a4 {[%clk 0:02:38.3]} 10... b4 {[%clk 0:02:41.1]} 11. cxb4
{[%clk 0:02:37.6]} 11... cxb4 {[%clk 0:02:41.2]} 12. Re1 {[%clk 0:02:36.8]}
12... Nc5 {[%clk 0:02:37.1]} 13. Be3 {[%clk 0:02:35.8]} 13... Ncxe4 {[%clk
0:02:26.9]} 14. Bxa7 {[%clk 0:02:30.1]} 14... Rxa7 {[%clk 0:02:18.8]} 15. Bxe4
{[%clk 0:02:29.5]} 15... Qb6 {[%clk 0:02:02]} 16. Nbd2 {[%clk 0:02:26.4]} 16...
Ng4 {[%clk 0:01:59.2]} 17. Rf1 {[%clk 0:02:06.8]} 17... Ba6 {[%clk 0:01:43.1]}
18. h3 {[%clk 0:02:05.2]} 18... Bxf1 {[%clk 0:01:43.1]} 19. hxg4 {[%clk
0:02:04.9]} 19... Ba6 {[%clk 0:01:41.8]} 20. g5 {[%clk 0:02:03.6]} 20... f5
{[%clk 0:01:30.7]} 21. gxf6 {[%clk 0:02:01.3]} 21... Bxf6 {[%clk 0:01:31.3]} 22.
Rc1 {[%clk 0:02:00.1]} 22... Rc7 {[%clk 0:01:30.8]} 23. Rc6 {[%clk 0:01:59]}
23... Rxc6 {[%clk 0:01:22.2]} 24. dxc6 {[%clk 0:01:58.4]} 24... Qc5 {[%clk
0:01:22.8]} 25. Nb3 {[%clk 0:01:49.5]} 25... Qa7 {[%clk 0:00:55.4]} 26. Qxd6
{[%clk 0:01:46.7]} 26... Bc4 {[%clk 0:00:44]} 27. c7 {[%clk 0:01:39.4]} 27...
Bxb3 {[%clk 0:00:37.5]} 28. Qxf8+ {[%clk 0:01:38]} 28... Kxf8 {[%clk 0:00:36.3]}
29. c8=Q+ {[%clk 0:01:37.1]} 29... Kg7 {[%clk 0:00:36.8]} 30. Qe8 {[%clk
0:01:29.4]} 30... Qxa4 {[%clk 0:00:34.2]} 31. Bc6 {[%clk 0:01:25.8]} 31... Qa7
{[%clk 0:00:33.1]} 32. Nxe5 {[%clk 0:01:22.5]} 32... Qe7 {[%clk 0:00:20.7]} 33.
Qxe7+ {[%clk 0:01:18.4]} 33... Bxe7 {[%clk 0:00:21.6]} 34. Be4 {[%clk 0:01:12]}
34... Bf6 {[%clk 0:00:18.4]} 35. Nd3 {[%clk 0:01:11.4]} 35... Bc2 {[%clk
0:00:18]} 36. f3 {[%clk 0:01:10.6]} 36... Bxd3 {[%clk 0:00:11.7]} 37. Bxd3
{[%clk 0:01:09.9]} 37... Bxb2 {[%clk 0:00:12.6]} 38. Kf1 {[%clk 0:01:07.1]}
38... h5 {[%clk 0:00:11.6]} 39. Ke2 {[%clk 0:01:02]} 39... g5 {[%clk 0:00:10.9]}
40. Bc4 {[%clk 0:01:01]} 40... Kf6 {[%clk 0:00:10.4]} 41. Ke3 {[%clk 0:01:00.5]}
41... Ke5 {[%clk 0:00:06.5]} 42. Bf7 {[%clk 0:00:59.3]} 42... Bc1+ {[%clk
0:00:05]} 43. Kd3 {[%clk 0:00:58.7]} 43... h4 {[%clk 0:00:04.9]} 44. Kc2 {[%clk
0:00:58]} 44... Be3 {[%clk 0:00:03.5]} 45. Kb3 {[%clk 0:00:57.2]} 45... Bd2
{[%clk 0:00:03.2]} 46. Be8 {[%clk 0:00:56.9]} 46... Kf4 {[%clk 0:00:02.4]} 47.
Bd7 {[%clk 0:00:56.8]} 47... Kg3 {[%clk 0:00:02.2]} 48. Bh3 {[%clk 0:00:56.4]}
48... Bc3 {[%clk 0:00:02.6]} 49. Kc2 {[%clk 0:00:56.5]} 49... Kf4 {[%clk
0:00:02.4]} 50. Kb3 {[%clk 0:00:56.6]} 50... Ke3 {[%clk 0:00:02.8]} 51. Bg4
{[%clk 0:00:56.7]} 51... Kf2 {[%clk 0:00:02.1]} 52. Bh3 {[%clk 0:00:56.8]} 52...
Kg3 {[%clk 0:00:01.8]} 1/2-1/2

[Event "*** Titled Tuesday Blitz"]
[Site "Chess.com"]
[Date "2020.05.12"]
[Round "4"]
[White "Quattroporte300"]
[Black "Gromes7"]
[Result "1-0"]
[WhiteElo "2328"]
[BlackElo "2107"]
[TimeControl "180+1"]
[EndTime "10:38:50 PDT"]
[Termination "Quattroporte300 won on time"]

1. e4 {[%clk 0:03:00.9]} 1... c5 {[%clk 0:02:59.7]} 2. Nf3 {[%clk 0:02:59.1]}
2... d6 {[%clk 0:02:59.3]} 3. d4 {[%clk 0:02:59.5]} 3... cxd4 {[%clk 0:02:59.3]}
4. Nxd4 {[%clk 0:03:00.1]} 4... Nf6 {[%clk 0:02:59.8]} 5. Nc3 {[%clk 0:03:00.6]}
5... Nc6 {[%clk 0:02:59.8]} 6. Bg5 {[%clk 0:02:59.6]} 6... e6 {[%clk 0:03:00]}
7. Qd2 {[%clk 0:02:58.4]} 7... Be7 {[%clk 0:02:59.9]} 8. O-O-O {[%clk
0:02:56.2]} 8... O-O {[%clk 0:02:59.5]} 9. f3 {[%clk 0:02:56.5]} 9... Nxd4
{[%clk 0:02:55]} 10. Qxd4 {[%clk 0:02:55.9]} 10... a6 {[%clk 0:02:55.5]} 11. h4
{[%clk 0:02:54.5]} 11... Qc7 {[%clk 0:02:55.4]} 12. g4 {[%clk 0:02:51.2]} 12...
b5 {[%clk 0:02:54.9]} 13. Kb1 {[%clk 0:02:46]} 13... Rb8 {[%clk 0:02:38.5]} 14.
h5 {[%clk 0:02:41.8]} 14... b4 {[%clk 0:02:37.7]} 15. Ne2 {[%clk 0:02:38.2]}
15... e5 {[%clk 0:02:37.4]} 16. Qd2 {[%clk 0:02:33.8]} 16... Be6 {[%clk
0:02:32.3]} 17. Be3 {[%clk 0:02:17.8]} 17... d5 {[%clk 0:01:25.9]} 18. g5 {[%clk
0:02:11.9]} 18... d4 {[%clk 0:01:26]} 19. Bf2 {[%clk 0:01:25.6]} 19... Nd7
{[%clk 0:01:23.6]} 20. Bh3 {[%clk 0:01:19.8]} 20... a5 {[%clk 0:00:56]} 21. g6
{[%clk 0:01:14]} 21... b3 {[%clk 0:00:28.5]} 22. cxb3 {[%clk 0:00:52.3]} 22...
a4 {[%clk 0:00:15.2]} 23. Bxe6 {[%clk 0:00:44.7]} 23... fxe6 {[%clk 0:00:15]}
24. h6 {[%clk 0:00:34.4]} 24... hxg6 {[%clk 0:00:06.7]} 25. hxg7 {[%clk
0:00:34.1]} 25... Kxg7 {[%clk 0:00:06.9]} 26. Qh6+ {[%clk 0:00:30.4]} 26... Kf7
{[%clk 0:00:06.9]} 27. Qh7+ {[%clk 0:00:26.2]} 27... Ke8 {[%clk 0:00:07.3]} 28.
Qxg6+ {[%clk 0:00:26.5]} 28... Kd8 {[%clk 0:00:05.7]} 29. Qxe6 {[%clk
0:00:22.6]} 29... Rb6 {[%clk 0:00:03.3]} 30. Qd5 {[%clk 0:00:17]} 30... Rd6
{[%clk 0:00:01.7]} 31. Qa8+ {[%clk 0:00:16.7]} 31... Nb8 {[%clk 0:00:01]} 32.
Rc1 {[%clk 0:00:13.2]} 1-0

[Event "*** Titled Tuesday Blitz"]
[Site "Chess.com"]
[Date "2020.05.12"]
[Round "4"]
[White "KaterinaMiroshnik"]
[Black "AlexZambrano"]
[Result "1-0"]
[WhiteElo "2460"]
[BlackElo "2285"]
[TimeControl "180+1"]
[EndTime "10:38:51 PDT"]
[Termination "KaterinaMiroshnik won on time"]

1. d3 {[%clk 0:03:00.9]} 1... d5 {[%clk 0:02:58.5]} 2. Nd2 {[%clk 0:03:00.2]}
2... Nf6 {[%clk 0:02:58.8]} 3. Ngf3 {[%clk 0:02:59.9]} 3... c5 {[%clk
0:02:58.1]} 4. e4 {[%clk 0:03:00.2]} 4... dxe4 {[%clk 0:02:55.8]} 5. dxe4 {[%clk
0:02:58.8]} 5... Nc6 {[%clk 0:02:56.1]} 6. Be2 {[%clk 0:02:57.3]} 6... e5 {[%clk
0:02:55.7]} 7. O-O {[%clk 0:02:56.7]} 7... Qc7 {[%clk 0:02:51.9]} 8. c3 {[%clk
0:02:55.8]} 8... h6 {[%clk 0:02:49.6]} 9. Re1 {[%clk 0:02:43.9]} 9... Be7 {[%clk
0:02:47.2]} 10. Qc2 {[%clk 0:02:42.4]} 10... O-O {[%clk 0:02:45.8]} 11. Nf1
{[%clk 0:02:41.6]} 11... Be6 {[%clk 0:02:37.3]} 12. Ng3 {[%clk 0:02:40.4]} 12...
Rfd8 {[%clk 0:02:35.9]} 13. Be3 {[%clk 0:02:39.6]} 13... a6 {[%clk 0:02:32.3]}
14. h3 {[%clk 0:02:38.7]} 14... b5 {[%clk 0:02:32]} 15. a4 {[%clk 0:02:37.5]}
15... c4 {[%clk 0:02:29.2]} 16. Nf1 {[%clk 0:02:34.1]} 16... Nd7 {[%clk
0:02:17.2]} 17. Ng3 {[%clk 0:02:27.6]} 17... Nc5 {[%clk 0:02:10.5]} 18. axb5
{[%clk 0:02:17.9]} 18... axb5 {[%clk 0:02:10.3]} 19. Nf5 {[%clk 0:02:18.3]}
19... Bxf5 {[%clk 0:02:03.5]} 20. exf5 {[%clk 0:02:19.2]} 20... Rxa1 {[%clk
0:01:50.9]} 21. Rxa1 {[%clk 0:02:16.9]} 21... Nb3 {[%clk 0:01:50.9]} 22. Rd1
{[%clk 0:02:15.2]} 22... Bc5 {[%clk 0:01:29.1]} 23. Qe4 {[%clk 0:02:02.4]} 23...
Bxe3 {[%clk 0:01:11.5]} 24. Rxd8+ {[%clk 0:01:52.9]} 24... Nxd8 {[%clk
0:00:55.6]} 25. Qxe3 {[%clk 0:01:47.3]} 25... f6 {[%clk 0:00:52.3]} 26. Nd2
{[%clk 0:01:42.6]} 26... Nc5 {[%clk 0:00:47.1]} 27. Ne4 {[%clk 0:01:32.9]} 27...
Nb3 {[%clk 0:00:42.5]} 28. Bd1 {[%clk 0:01:26.4]} 28... Na5 {[%clk 0:00:30]} 29.
Qd2 {[%clk 0:01:22.6]} 29... Nac6 {[%clk 0:00:26.5]} 30. Nd6 {[%clk 0:01:08.3]}
30... Ne7 {[%clk 0:00:11.6]} 31. Nxb5 {[%clk 0:01:05]} 31... Qc8 {[%clk
0:00:10.7]} 32. g4 {[%clk 0:00:59.8]} 32... Nf7 {[%clk 0:00:07.7]} 33. Nd6
{[%clk 0:00:52.7]} 33... Qd7 {[%clk 0:00:06.1]} 34. Nxc4 {[%clk 0:00:50.7]}
34... Qb5 {[%clk 0:00:04.1]} 35. Ne3 {[%clk 0:00:49.1]} 35... Qb7 {[%clk
0:00:01.4]} 36. c4 {[%clk 0:00:45.4]} 36... Ng5 {[%clk 0:00:01.8]} 37. Kh2
{[%clk 0:00:43.7]} 37... Kh7 {[%clk 0:00:02.2]} 38. Nd5 {[%clk 0:00:42.4]} 38...
Nxd5 {[%clk 0:00:01.9]} 39. cxd5 {[%clk 0:00:42.7]} 39... Qd7 {[%clk 0:00:01.6]}
40. d6 {[%clk 0:00:41.6]} 40... Nf7 {[%clk 0:00:01.3]} 41. Bb3 {[%clk
0:00:40.4]} 41... Nxd6 {[%clk 0:00:01.5]} 42. Be6 {[%clk 0:00:40.7]} 42... Qc7
{[%clk 0:00:01.3]} 43. b4 {[%clk 0:00:41]} 43... e4 {[%clk 0:00:01.4]} 44. Qf4
{[%clk 0:00:39]} 1-0

[Event "*** Titled Tuesday Blitz"]
[Site "Chess.com"]
[Date "2020.05.12"]
[Round "4"]
[White "Zufi1811"]
[Black "mshuaau0"]
[Result "1-0"]
[WhiteElo "2461"]
[BlackElo "2181"]
[TimeControl "180+1"]
[EndTime "10:38:52 PDT"]
[Termination "Zufi1811 won by resignation"]

1. e4 {[%clk 0:03:00.9]} 1... e5 {[%clk 0:03:00]} 2. Nf3 {[%clk 0:03:00.7]} 2...
Nc6 {[%clk 0:03:00.2]} 3. Bb5 {[%clk 0:03:01.2]} 3... a6 {[%clk 0:03:00.3]} 4.
Ba4 {[%clk 0:03:01.3]} 4... Nf6 {[%clk 0:03:00.3]} 5. O-O {[%clk 0:03:01.6]}
5... Be7 {[%clk 0:03:00.6]} 6. Re1 {[%clk 0:03:01.9]} 6... b5 {[%clk 0:03:01.1]}
7. Bb3 {[%clk 0:03:02.4]} 7... d6 {[%clk 0:03:02]} 8. c3 {[%clk 0:03:02.8]} 8...
O-O {[%clk 0:03:01.6]} 9. h3 {[%clk 0:03:03.3]} 9... Nb8 {[%clk 0:03:01.5]} 10.
d4 {[%clk 0:03:03]} 10... Nbd7 {[%clk 0:03:01.9]} 11. Nbd2 {[%clk 0:03:03.2]}
11... Bb7 {[%clk 0:03:01.7]} 12. Bc2 {[%clk 0:03:03.7]} 12... Re8 {[%clk
0:03:01.2]} 13. Nf1 {[%clk 0:03:04]} 13... Bf8 {[%clk 0:03:01.5]} 14. Ng3 {[%clk
0:03:04.6]} 14... g6 {[%clk 0:03:01.6]} 15. Bg5 {[%clk 0:03:05.2]} 15... h6
{[%clk 0:02:59.3]} 16. Bd2 {[%clk 0:03:05.7]} 16... Bg7 {[%clk 0:02:58.9]} 17.
a4 {[%clk 0:03:04.3]} 17... Nb6 {[%clk 0:02:51.4]} 18. b3 {[%clk 0:02:55.6]}
18... bxa4 {[%clk 0:02:46.5]} 19. bxa4 {[%clk 0:02:55.3]} 19... a5 {[%clk
0:02:42.5]} 20. Bd3 {[%clk 0:02:47.1]} 20... Qd7 {[%clk 0:02:29.6]} 21. d5
{[%clk 0:02:43.7]} 21... c6 {[%clk 0:02:12.5]} 22. Rb1 {[%clk 0:02:36.2]} 22...
Nc8 {[%clk 0:01:48.2]} 23. Qb3 {[%clk 0:02:21.7]} 23... Ba6 {[%clk 0:01:47.6]}
24. Bxa6 {[%clk 0:02:19.5]} 24... Rxa6 {[%clk 0:01:47.6]} 25. c4 {[%clk
0:02:20.1]} 25... cxd5 {[%clk 0:01:44.5]} 26. cxd5 {[%clk 0:02:15.6]} 26... Rb6
{[%clk 0:01:38.5]} 27. Qc4 {[%clk 0:02:11]} 27... Rxb1 {[%clk 0:01:21.7]} 28.
Rxb1 {[%clk 0:02:11.9]} 28... Ne7 {[%clk 0:01:21]} 29. Qb5 {[%clk 0:01:53.1]}
29... Qxb5 {[%clk 0:01:11.8]} 30. Rxb5 {[%clk 0:01:54]} 30... h5 {[%clk
0:01:11.1]} 31. Bxa5 {[%clk 0:01:33]} 31... h4 {[%clk 0:01:09.5]} 32. Nxh4
{[%clk 0:01:30.7]} 32... Ra8 {[%clk 0:01:01.1]} 33. Bc7 {[%clk 0:01:15.4]} 33...
Rxa4 {[%clk 0:00:59.4]} 34. Bxd6 {[%clk 0:01:15.5]} 34... g5 {[%clk 0:00:46.9]}
35. Nf3 {[%clk 0:00:59.4]} 35... Ng6 {[%clk 0:00:45.1]} 36. Rb8+ {[%clk
0:00:58.1]} 36... Kh7 {[%clk 0:00:44.8]} 37. Nxg5+ {[%clk 0:00:57.7]} 37... Kh6
{[%clk 0:00:44.9]} 38. Nxf7+ {[%clk 0:00:57.7]} 38... Kh7 {[%clk 0:00:44.9]} 39.
f3 {[%clk 0:00:50]} 39... Nd7 {[%clk 0:00:38.2]} 40. Rd8 {[%clk 0:00:44.8]}
40... Ra1+ {[%clk 0:00:34.4]} 41. Kh2 {[%clk 0:00:44.4]} 41... Ra2 {[%clk
0:00:24.9]} 42. Rxd7 {[%clk 0:00:28.7]} 42... Nh4 {[%clk 0:00:23.4]} 43. Nf5
{[%clk 0:00:26.5]} 43... Nxg2 {[%clk 0:00:15.4]} 44. Ng5+ {[%clk 0:00:24.4]}
44... Kh8 {[%clk 0:00:13.9]} 45. Rd8+ {[%clk 0:00:23.4]} 1-0